bitfinex/quotes_SOLUSD_20220208
["timestamp","ask_amount","ask_price","bid_price","bid_amount"]
[1644334482157,38.0474995,111.29,111.21,45.82210599]
[1644334482954,10.78,111.34,111.21,45.82210599]
[1644334483156,55.7342,111.35,111.22,0.024]
[1644334483458,13.4861,111.33,111.23,13.4848]
[1644334483754,10.78,111.37,111.23,15.63423784]
[1644334483955,45.66108127,111.37,111.24,33.75191158]
[1644334484155,47.76883676,111.37,111.24,33.77591158]
[1644334484356,58.54883676,111.37,111.24,33.77591158]
[1644334484557,13.4835,111.35,111.25,0.024]
[1644334484761,13.4835,111.35,111.24,13.4831]
[1644334484962,15.59125549,111.35,111.24,13.4831]
[1644334485158,13.4835,111.35,111.24,19.4831]
[1644334485558,47.04863125,111.34,111.25,36.5332226]
[1644334485757,47.04863125,111.34,111.25,50.0158226]
[1644334485959,47.04863125,111.34,111.25,56.0158226]
[1644334486159,47.04863125,111.34,111.25,19.4826]
[1644334486359,60.53253125,111.34,111.25,19.4826]
[1644334487162,60.53253125,111.34,111.25,56.27083521]
[1644334487464,60.53253125,111.34,111.25,13.4826]
[1644334487662,62.64028674,111.34,111.24,0.024]
[1644334487863,73.42028674,111.34,111.24,0.024]
[1644334488062,60.53253125,111.34,111.24,0.024]
[1644334488269,47.04863125,111.34,111.24,1.88012999]
[1644334488467,47.04863125,111.34,111.26,36.92842705]
[1644334488862,13.4819,111.36,111.26,36.92842705]
[1644334489462,6.0,111.36,111.26,63.06945704]
[1644334489664,14.70621587,111.38,111.26,63.06945704]
[1644334489863,43.93471334,111.37,111.26,61.21332705]
[1644334491763,57.41491334,111.37,111.26,61.21332705]
[1644334491967,6.0,111.38,111.26,61.21332705]
[1644334492165,6.0,111.38,111.26,67.46332705]
[1644334492464,6.0,111.38,111.26,62.72303676]
[1644334492767,1.22671587,111.4,111.26,62.72303676]
[1644334492967,35.83404724,111.37,111.26,111.56873676]
[1644334493264,41.83404724,111.37,111.26,110.05902705]
[1644334493866,41.83404724,111.37,111.26,110.30902705]
[1644334494165,41.83404724,111.37,111.26,110.05902705]
[1644334494883,55.31384724,111.37,111.26,110.05902705]
[1644334495083,57.42160273,111.37,111.26,110.05902705]
[1644334495784,69.4283186,111.37,111.26,48.8697]
[1644334495983,69.4283186,111.37,111.26,0.024]
[1644334496184,1.22671587,111.36,111.25,0.024]
[1644334496386,13.4844,111.33,111.25,0.024]
[1644334496584,13.4844,111.33,111.24,13.4835]
[1644334496785,44.72741687,111.32,111.25,39.61915709]
[1644334497484,44.72741687,111.32,111.25,53.10255709]
[1644334499886,44.72741687,111.32,111.25,13.4834]
[1644334500085,50.72741687,111.32,111.25,13.4834]
[1644334500491,50.72741687,111.32,111.24,13.4847]
[1644334500887,50.72741687,111.32,111.25,37.30526919]
[1644334501688,64.21231687,111.32,111.24,13.4847]
[1644334502791,64.21231687,111.32,111.22,14.76980971]
[1644334502993,66.32007236,111.32,111.22,0.024]
[1644334503195,66.32007236,111.32,111.2,24.96960971]
[1644334503404,81.59307236,111.32,111.2,23.7099]
[1644334503595,81.59307236,111.32,111.2,0.024]
[1644334503793,81.59307236,111.32,111.19,0.024]
[1644334504096,82.81978823,111.32,111.19,0.024]
[1644334504492,1.22671587,111.31,111.19,0.024]
[1644334504692,13.4941,111.28,111.19,0.024]
[1644334504892,13.4941,111.28,111.18,45.9928]
[1644334505092,15.60185549,111.28,111.18,45.9928]
[1644334505498,38.42635337,111.27,111.18,45.9928]
[1644334505700,13.4951,111.25,111.18,45.9928]
[1644334505892,13.4951,111.25,111.17,0.44958781]
[1644334506495,39.95440854,111.24,111.17,0.44958781]
[1644334506797,13.4957,111.23,111.17,0.44958781]
[1644334507194,65.0,111.22,111.14,14.77970971]
[1644334507394,2.10775549,111.23,111.13,1.28370971]
[1644334507596,38.96313971,111.22,111.13,0.024]
[1644334507794,38.96313971,111.22,111.11,74.1581]
[1644334508195,38.96313971,111.22,111.11,106.20181037]
[1644334508396,44.96313971,111.22,111.11,106.17781037]
[1644334508795,13.4986,111.21,111.11,106.17781037]
[1644334508997,42.74762918,111.2,111.11,74.1341]
[1644334509197,42.74762918,111.2,111.1,12.06370971]
[1644334509400,42.74762918,111.2,111.09,12.03970971]
[1644334509696,42.74762918,111.2,111.09,12.06370971]
[1644334509895,42.74762918,111.2,111.09,10.804]
[1644334510098,42.74762918,111.2,111.09,51.60231699]
[1644334510296,56.24752918,111.2,111.09,24.3056]
[1644334511300,68.80752918,111.2,111.09,61.17710476]
[1644334511795,68.80752918,111.2,111.09,47.67550476]
[1644334512597,68.80752918,111.2,111.09,10.804]
[1644334512799,70.91528467,111.2,111.09,0.024]
[1644334513000,11.10202726,111.19,111.05,12.80625706]
[1644334513201,11.10202726,111.19,111.01,4.498]
[1644334513202,13.5098,111.15,111.01,4.498]
[1644334513498,15.281,111.14,110.99,24.97310971]
[1644334513698,15.281,111.14,111.0,44.07622995]
[1644334513699,35.8934257,111.13,111.0,44.07622995]
[1644334513899,10.78,111.12,111.0,43.57622995]
[1644334514099,47.10392621,111.11,111.0,43.57622995]
[1644334514502,47.10392621,111.11,111.02,25.21537543]
[1644334514898,47.10392621,111.11,111.04,43.57622995]
[1644334515099,10.78,111.16,111.04,43.57622995]
[1644334515301,10.78,111.16,110.99,46.23365706]
[1644334515302,121.0,111.15,110.99,11.74025706]
[1644334515500,2.43165701,111.11,110.9,3.81219839]
[1644334515705,0.31143665,111.06,110.9,2.52947132]
[1644334515905,10.78,111.05,110.87,37.97848973]
[1644334516100,10.78,111.05,110.88,141.9022]
[1644334516302,38.3957923,111.04,110.89,42.33544591]
[1644334516500,38.3957923,111.04,110.89,131.12064591]
[1644334517500,10.78,111.06,110.91,13.52]
[1644334518102,10.78,111.06,110.91,19.52]
[1644334518306,10.78,111.06,110.92,38.6334406]
[1644334518704,10.78,111.09,110.93,24.2976]
[1644334518901,4.503,111.14,110.94,4.943]
[1644334519102,10.78,111.15,110.96,0.44]
[1644334519307,10.78,111.15,110.97,15.282]
[1644334519503,39.73597125,111.14,110.99,34.98940797]
[1644334519703,10.78,111.13,110.99,34.98940797]
[1644334519904,42.90692987,111.12,110.99,34.98940797]
[1644334520104,53.68692987,111.12,110.99,34.98940797]
[1644334520312,53.68692987,111.12,110.99,35.23940797]
[1644334520509,10.78,111.12,110.99,35.23940797]
[1644334521109,10.78,111.15,110.99,50.52140797]
[1644334521307,10.78,111.16,111.0,24.4649]
[1644334521507,46.54186107,111.15,111.01,40.96801514]
[1644334521706,46.54186107,111.15,111.01,52.02201514]
[1644334521906,46.54186107,111.15,111.01,51.99801514]
[1644334522307,46.04186107,111.15,111.01,51.99801514]
[1644334522706,6.0,111.15,111.01,56.49901514]
[1644334522906,6.0,111.15,111.02,13.5066]
[1644334523106,6.0,111.15,111.03,10.78]
[1644334523307,10.78,111.17,111.03,11.03]
[1644334523609,23.88000955,111.19,111.03,11.03]
[1644334523808,6.0,111.17,111.04,41.69997108]
[1644334524009,2.10775549,111.2,111.05,10.78]
[1644334524208,2.10775549,111.2,111.05,11.03]
[1644334524412,8.10775549,111.2,111.05,11.03]
[1644334524610,6.0,111.2,111.05,11.03]
[1644334524808,6.0,111.2,111.05,10.78]
[1644334525010,37.28898672,111.2,111.07,40.96801514]
[1644334525309,57.9736386,111.2,111.07,40.96801514]
[1644334525510,4.499,111.2,111.07,41.21801514]
[1644334525708,16.18565188,111.23,111.07,51.99801514]
[1644334526009,4.498,111.26,111.09,0.44]
[1644334526214,10.78,111.27,111.1,10.78]
[1644334526409,34.18432232,111.26,111.11,49.99439341]
[1644334526611,65.6469742,111.26,111.11,49.99439341]
[1644334527217,67.75472969,111.26,111.11,49.99439341]
[1644334527813,69.25772969,111.26,111.11,49.99439341]
[1644334528011,69.25772969,111.26,111.11,50.24439341]
[1644334528611,69.25772969,111.26,111.12,0.024]
[1644334528817,69.25772969,111.26,111.12,10.804]
[1644334529012,69.25772969,111.26,111.13,43.45359281]
[1644334529312,6.0,111.26,111.13,54.48359281]
[1644334529712,10.78,111.31,111.13,54.48359281]
[1644334529912,10.78,111.31,111.14,0.024]
[1644334530114,40.10470358,111.3,111.15,10.78]
[1644334530317,40.10470358,111.3,111.16,48.52657517]
[1644334530514,40.10470358,111.3,111.17,0.024]
[1644334531013,69.17811095,111.3,111.17,0.024]
[1644334532817,82.67331095,111.3,111.17,0.024]
[1644334533419,82.67331095,111.3,111.17,10.804]
[1644334533420,40.10470358,111.3,111.17,10.804]
[1644334533622,40.10470358,111.3,111.18,41.9857838]
[1644334533920,40.10470358,111.3,111.18,66.2532838]
[1644334534118,40.10470358,111.3,111.18,66.2292838]
[1644334534917,46.10470358,111.3,111.18,66.2292838]
[1644334535317,46.10470358,111.3,111.18,66.4792838]
[1644334535518,46.10470358,111.3,111.18,66.2292838]
[1644334535717,46.10470358,111.3,111.18,41.9617838]
[1644334536119,48.21245907,111.3,111.18,41.9617838]
[1644334536321,46.10470358,111.3,111.18,42.2117838]
[1644334536918,46.10470358,111.3,111.18,52.4297838]
[1644334537118,46.10470358,111.3,111.18,52.4537838]
[1644334537319,46.10470358,111.3,111.18,65.9413838]
[1644334537718,46.10470358,111.3,111.18,65.9173838]
[1644334538723,6.0,111.3,111.19,10.78]
[1644334538929,6.0,111.3,111.19,24.2654]
[1644334539123,2.10775549,111.29,111.17,0.024]
[1644334539526,28.5451412,111.29,111.15,0.024]
[1644334539722,34.52726192,111.28,111.15,0.024]
[1644334539923,58.77104421,111.27,111.12,41.81967691]
[1644334540122,36.86979775,111.24,111.12,41.81967691]
[1644334540323,10.78,111.25,111.12,41.81967691]
[1644334540723,10.78,111.27,111.12,41.81967691]
[1644334541421,39.88578693,111.26,111.12,41.81967691]
[1644334541621,39.88578693,111.26,111.12,42.06967691]
[1644334541824,10.78,111.27,111.12,55.56457691]
[1644334542022,70.1453,111.3,111.13,10.78]
[1644334542322,70.1453,111.3,111.14,22.6836]
[1644334542620,70.1453,111.3,111.15,0.024]
[1644334542621,12.88775549,111.29,111.15,0.024]
[1644334542825,34.40817052,111.28,111.15,45.47943647]
[1644334543020,10.78,111.27,111.15,45.47943647]
[1644334543223,36.66169767,111.26,111.15,45.47943647]
[1644334543823,10.78,111.25,111.15,45.47943647]
[1644334544022,43.96754765,111.24,111.15,45.45543647]
[1644334544223,10.78,111.23,111.15,45.45543647]
[1644334544431,48.1471995,111.22,111.15,45.45543647]
[1644334545024,2.10775549,111.26,111.15,45.45543647]
[1644334545224,10.78,111.25,111.15,45.45543647]
[1644334546024,38.01733658,111.24,111.15,45.45543647]
[1644334546627,40.12509207,111.24,111.15,45.45543647]
[1644334546826,46.12509207,111.24,111.15,45.45543647]
[1644334547029,10.78,111.23,111.15,45.45543647]
[1644334547328,39.81659429,111.22,111.15,45.45543647]
[1644334549030,39.81659429,111.22,111.13,0.024]
[1644334549031,41.92434978,111.22,111.13,0.024]
[1644334549232,41.92434978,111.22,111.1,23.8753]
[1644334549436,39.81659429,111.22,111.1,23.8993]
[1644334550032,48.92507297,111.24,111.1,23.8993]
[1644334550033,41.93339949,111.2,111.11,37.92871551]
[1644334550232,41.93339949,111.2,111.11,37.95271551]
[1644334550435,41.93339949,111.2,111.11,37.92871551]
[1644334550855,44.04115498,111.2,111.11,37.92871551]
[1644334551455,41.93339949,111.2,111.11,37.92871551]
[1644334551854,47.93339949,111.2,111.11,37.92871551]
[1644334552755,50.04115498,111.2,111.11,37.92871551]
[1644334553255,60.82115498,111.2,111.11,37.92871551]
[1644334554356,90.85847246,111.2,111.11,37.92871551]
[1644334554958,104.36417246,111.2,111.11,37.92871551]
[1644334555756,90.17779625,111.2,111.11,37.92871551]
[1644334555957,72.21909949,111.2,111.11,37.92871551]
[1644334556956,74.32685498,111.2,111.11,37.92871551]
[1644334557360,72.21909949,111.2,111.11,37.92871551]
[1644334557759,74.32685498,111.2,111.11,37.92871551]
[1644334558561,74.32685498,111.2,111.07,0.024]
[1644334558764,90.17779625,111.2,111.05,0.024]
[1644334558962,90.17779625,111.2,111.03,0.024]
[1644334559362,88.07004076,111.2,111.02,0.024]
[1644334559562,51.16215549,111.19,111.03,0.024]
[1644334559763,44.17409572,111.18,111.03,43.41222108]
[1644334559966,44.17409572,111.18,111.04,0.024]
[1644334560163,44.17409572,111.18,111.05,35.23101251]
[1644334560464,44.17409572,111.18,111.06,0.024]
[1644334562164,46.28185121,111.18,111.06,0.024]
[1644334562567,70.56825121,111.18,111.06,0.024]
[1644334562766,86.41919248,111.18,111.06,0.024]
[1644334563573,0.30852154,111.15,111.04,0.024]
[1644334563777,24.2952,111.14,110.98,0.024]
[1644334563970,4.502,111.13,110.98,0.024]
[1644334564169,44.2,111.11,110.98,0.024]
[1644334564368,54.01095439,111.1,110.98,42.27293307]
[1644334564570,54.01095439,111.1,110.99,0.024]
[1644334564970,35.44026865,111.08,110.99,0.024]
[1644334565171,35.44026865,111.08,110.98,42.24893307]
[1644334565970,13.5185,111.09,110.98,42.24893307]
[1644334566170,10.78,111.1,110.98,42.27293307]
[1644334566773,10.78,111.1,110.98,42.52293307]
[1644334566977,52.37308813,111.1,110.98,42.27293307]
[1644334567573,65.88858813,111.1,110.98,55.78623307]
[1644334567776,110.0,111.09,110.93,24.1846]
[1644334567979,95.78,111.08,110.94,4.502]
[1644334568174,98.19354833,111.08,110.94,4.502]
[1644334568374,44.2,111.07,110.94,4.502]
[1644334568576,0.3040805,111.04,110.92,8.394]
[1644334568771,4.8942209,111.0,110.93,37.45314648]
[1644334568978,24.3078,111.01,110.92,8.394]
[1644334569873,24.3078,111.01,110.93,46.04498914]
[1644334570472,13.5233,111.03,110.93,46.04498914]
[1644334570976,10.78,111.04,110.93,46.04498914]
[1644334571374,10.78,111.07,110.93,48.15833916]
[1644334571583,10.78,111.1,110.93,48.15833916]
[1644334572178,70.0358,111.12,110.95,0.44]
[1644334572375,10.78,111.17,110.96,10.78]
[1644334572578,48.29185549,111.16,110.97,78.433]
[1644334572776,13.511,111.13,110.97,78.433]
[1644334572973,10.78,111.12,110.97,78.433]
[1644334573174,17.38975549,111.12,110.97,78.433]
[1644334573374,21.9731901,111.11,110.98,46.62148212]
[1644334573575,30.64543461,111.11,110.98,46.62148212]
[1644334573974,1.6345262,111.08,110.98,46.62148212]
[1644334574174,12.4145262,111.08,110.98,46.62148212]
[1644334574377,18.88775549,111.08,110.98,46.62148212]
[1644334574774,16.78,111.08,110.98,46.62148212]
[1644334575175,18.88775549,111.08,110.98,46.62148212]
[1644334575380,18.67956012,111.07,110.98,46.62148212]
[1644334575577,29.45956012,111.07,110.94,4.503]
[1644334575775,2.10775549,111.06,110.94,4.503]
[1644334575977,12.88775549,111.06,110.94,4.503]
[1644334576675,13.5212,111.05,110.94,4.503]
[1644334577175,13.5212,111.05,110.95,35.54648716]
[1644334577575,15.62895549,111.05,110.95,35.54648716]
[1644334577978,21.62895549,111.05,110.95,35.54648716]
[1644334578384,19.5212,111.05,110.95,35.54648716]
[1644334578580,6.0,111.05,110.95,35.54648716]
[1644334578777,6.0,111.05,110.95,35.79648716]
[1644334578978,13.5183,111.07,110.95,37.65985853]
[1644334579177,17.37184329,111.07,110.95,35.54648716]
[1644334579379,19.5183,111.07,110.95,35.54648716]
[1644334580380,57.95405549,111.09,110.95,49.06318716]
[1644334580381,15.62385549,111.09,110.95,49.06318716]
[1644334580586,114.42324851,111.12,110.96,1.86337137]
[1644334580587,10.78,111.11,110.96,1.86337137]
[1644334580783,47.0422,111.12,110.96,12.89337137]
[1644334581382,21.44502261,111.11,110.97,48.18889964]
[1644334581581,34.95862261,111.11,110.97,48.18889964]
[1644334581784,13.5136,111.11,110.97,48.18889964]
[1644334581985,13.5136,111.11,110.97,48.43889964]
[1644334582182,13.5136,111.11,110.97,102.15889964]
[1644334582382,23.6161,111.14,110.98,4.502]
[1644334582586,23.6161,111.14,111.02,13.5085]
[1644334582784,37.1259,111.14,111.03,38.28783273]
[1644334582984,33.09791517,111.17,111.03,38.28783273]
[1644334583288,89.50055755,111.21,111.03,38.53783273]
[1644334583485,6.0,111.17,111.04,15.279]
[1644334583686,6.0,111.17,111.08,13.5001]
[1644334583887,13.5002,111.22,111.08,13.5001]
[1644334584908,18.65952647,111.21,111.09,39.22874186]
[1644334585111,23.15752647,111.21,111.09,39.22874186]
[1644334585310,13.5051,111.18,111.09,39.22874186]
[1644334586414,10.78,111.2,111.09,39.22874186]
[1644334586612,13.5022,111.2,111.09,39.47874186]
[1644334586810,18.15165574,111.19,111.09,39.47874186]
[1644334587010,18.15165574,111.19,111.09,39.22874186]
[1644334587910,31.65535574,111.19,111.09,39.22874186]
[1644334588515,37.65535574,111.19,111.09,39.22874186]
[1644334588911,19.5037,111.19,111.09,39.22874186]
[1644334589112,6.0,111.19,111.09,39.22874186]
[1644334589513,10.78,111.21,111.09,39.22874186]
[1644334589514,2.10775549,111.18,111.09,39.22874186]
[1644334589914,19.36229427,111.18,111.09,39.22874186]
[1644334590514,2.10775549,111.17,111.09,39.22874186]
[1644334590716,15.61325549,111.17,111.09,39.22874186]
[1644334591318,2.10775549,111.16,111.09,39.22874186]
[1644334591817,21.49569566,111.16,111.09,39.22874186]
[1644334592017,27.49569566,111.16,111.09,39.22874186]
[1644334592717,41.00329566,111.16,111.09,39.22874186]
[1644334592917,21.61535549,111.16,111.09,39.22874186]
[1644334593122,19.5076,111.16,111.09,39.22874186]
[1644334593518,6.0,111.16,111.09,39.22874186]
[1644334593925,22.21511433,111.2,111.09,39.22874186]
[1644334594320,21.85111227,111.2,111.09,39.22874186]
[1644334595318,35.35331227,111.2,111.09,39.22874186]
[1644334595519,10.78,111.19,111.09,39.22874186]
[1644334595720,1.75660403,111.18,111.09,39.22874186]
[1644334595919,3.86435952,111.18,111.09,39.22874186]
[1644334596121,1.75660403,111.18,111.09,39.22874186]
[1644334596520,55.8016,111.19,111.09,39.22874186]
[1644334596721,13.5065,111.16,111.09,39.22874186]
[1644334597323,13.5065,111.16,111.06,0.024]
[1644334597526,13.5065,111.16,111.04,0.024]
[1644334597527,30.2865,111.16,111.04,0.024]
[1644334597726,30.2865,111.16,111.03,0.024]
[1644334598224,13.5123,111.11,111.01,0.024]
[1644334598426,10.78,111.14,111.01,43.98344157]
[1644334598729,10.78,111.14,111.02,0.024]
[1644334598930,10.78,111.14,111.02,13.5335]
[1644334599131,6.0,111.16,111.02,13.5335]
[1644334599328,6.0,111.16,111.03,0.024]
[1644334599733,6.0,111.16,111.03,10.804]
[1644334599928,13.5053,111.17,111.03,10.804]
[1644334599929,13.5053,111.17,111.04,48.0461791]
[1644334600227,13.5053,111.17,111.04,48.2961791]
[1644334600830,13.5053,111.17,111.06,13.5045]
[1644334601229,19.5053,111.17,111.06,13.5045]
[1644334601630,2.47175755,111.2,111.07,37.47171224]
[1644334601830,2.47175755,111.22,111.09,13.5014]
[1644334602035,2.47675544,111.23,111.1,42.08900851]
[1644334602230,4.32190706,111.22,111.1,42.08900851]
[1644334602431,2.47175755,111.23,111.1,42.08900851]
[1644334602631,2.47175755,111.22,111.1,42.08900851]
[1644334602830,4.94858377,111.23,111.1,42.08900851]
[1644334603031,6.0,111.22,111.1,42.08900851]
[1644334603230,2.47175755,111.23,111.1,42.08900851]
[1644334603431,19.75347881,111.21,111.1,55.58900851]
[1644334603630,25.75347881,111.21,111.1,55.58900851]
[1644334603933,25.75347881,111.21,111.1,42.08900851]
[1644334604132,19.5006,111.21,111.1,42.08900851]
[1644334605134,36.26925643,111.21,111.1,42.08900851]
[1644334605534,19.5006,111.21,111.1,42.08900851]
[1644334605733,19.5006,111.21,111.1,55.58860851]
[1644334607235,19.5006,111.21,111.1,55.83860851]
[1644334608035,6.0,111.21,111.1,55.83860851]
[1644334608236,13.4962,111.23,111.1,57.70189087]
[1644334608439,13.4962,111.23,111.1,55.83860851]
[1644334608638,13.4962,111.23,111.1,55.58860851]
[1644334608836,13.4962,111.23,111.1,55.83860851]
[1644334609034,13.4962,111.23,111.1,55.58860851]
[1644334609437,13.4962,111.23,111.1,55.83860851]
[1644334609635,13.4962,111.23,111.1,66.36860851]
[1644334609836,13.4962,111.23,111.1,66.61860851]
[1644334610956,13.4962,111.23,111.1,66.36860851]
[1644334611160,18.07571304,111.23,111.1,66.36860851]
[1644334611365,19.58210723,111.22,111.1,66.36860851]
[1644334611556,13.5005,111.19,111.1,42.08900851]
[1644334611957,19.5005,111.19,111.1,42.08900851]
[1644334613760,19.5005,111.19,111.1,55.58940851]
[1644334616267,13.4983,111.21,111.1,66.61940851]
[1644334616468,2.47175755,111.24,111.1,66.61940851]
[1644334616669,3.76305452,111.28,111.14,13.492]
[1644334616867,3.76305452,111.28,111.15,11.22]
[1644334617064,3.76305452,111.33,111.15,72.80328236]
[1644334617267,3.76305452,111.33,111.19,44.9529]
[1644334617465,6.27527581,111.35,111.2,34.52589101]
[1644334617664,6.27527581,111.35,111.2,47.17417174]
[1644334617863,5.98912477,111.34,111.2,47.42417174]
[1644334618063,6.27527581,111.35,111.2,47.42417174]
[1644334618267,2.48209609,111.33,111.2,114.63007174]
[1644334618464,2.48209609,111.34,111.2,60.91007174]
[1644334618669,0.0301252,111.35,111.2,114.63007174]
[1644334618865,0.0301252,111.35,111.2,66.91007174]
[1644334619065,6.27517505,111.37,111.2,66.91007174]
[1644334619267,6.27517505,111.37,111.24,44.9306]
[1644334619476,0.0301252,111.36,111.25,24.2592]
[1644334619671,0.0301252,111.37,111.25,36.61948073]
[1644334619871,0.0301252,111.37,111.25,36.86948073]
[1644334620071,0.0301252,111.37,111.26,38.67351637]
[1644334620277,8.51212053,111.39,111.27,55.6984]
[1644334620467,0.0301252,111.38,111.28,41.79406377]
[1644334620667,0.0301252,111.39,111.28,41.79406377]
[1644334620867,2.50637497,111.4,111.28,41.79406377]
[1644334621768,13.4791,111.38,111.28,41.79406377]
[1644334622168,0.0301252,111.4,111.28,41.79406377]
[1644334622367,2.50407714,111.4,111.28,53.68906377]
[1644334622567,2.50407714,111.4,111.28,53.93906377]
[1644334622868,13.5068252,111.4,111.3,13.4747]
[1644334623069,6.0,111.41,111.3,13.4747]
[1644334623568,6.0,111.41,111.31,35.13967682]
[1644334623769,0.0301252,111.42,111.31,35.13967682]
[1644334623969,6.0,111.41,111.31,48.61357682]
[1644334624170,0.0301252,111.42,111.32,12.64828073]
[1644334624374,0.0301252,111.43,111.32,22.99728073]
[1644334624575,0.0301252,111.45,111.33,49.24514802]
[1644334624771,22.73959125,111.46,111.34,10.78]
[1644334624971,0.0301252,111.45,111.35,58.15831692]
[1644334625171,22.73959125,111.46,111.35,44.68981692]
[1644334626673,2.10775549,111.45,111.3,124.6573]
[1644334626872,2.10775549,111.45,111.3,77.3161]
[1644334626873,2.13788069,111.45,111.3,77.3161]
[1644334627078,0.0301252,111.44,111.3,88.0961]
[1644334627375,2.13788069,111.44,111.3,88.0961]
[1644334627575,1.23212711,111.43,111.31,40.87883437]
[1644334627972,13.4748,111.42,111.31,40.87883437]
[1644334628172,0.0301252,111.44,111.32,1.86819067]
[1644334628373,0.0301252,111.46,111.33,10.78]
[1644334628574,23.9607252,111.52,111.33,55.5528]
[1644334628774,23.9607252,111.52,111.35,0.44]
[1644334628973,47.02177246,111.52,111.36,10.78]
[1644334629174,23.9607252,111.52,111.36,26.11369067]
[1644334629373,23.9607252,111.52,111.37,1.86819067]
[1644334629573,0.0301252,111.52,111.38,10.78]
[1644334629780,0.0301252,111.52,111.38,11.03]
[1644334629973,0.0301252,111.52,111.39,1.86819067]
[1644334630173,18.89925787,111.52,111.4,59.17342594]
[1644334630374,36.3256,111.53,111.42,35.6766797]
[1644334630576,0.0301252,111.52,111.42,35.6766797]
[1644334630775,0.0301252,111.54,111.42,35.9266797]
[1644334630977,0.0301252,111.56,111.43,12.64819067]
[1644334631175,0.0301252,111.56,111.43,23.13219067]
[1644334631375,19.13921016,111.6,111.45,41.34317646]
[1644334631575,19.13921016,111.6,111.46,10.78]
[1644334631775,19.13921016,111.6,111.47,35.45238184]
[1644334631975,19.13921016,111.6,111.47,46.23238184]
[1644334632175,0.0301252,111.6,111.47,46.48238184]
[1644334632577,0.0301252,111.6,111.48,13.4516]
[1644334632777,15.2921252,111.63,111.48,24.4816]
[1644334633178,22.69322196,111.62,111.49,36.89907442]
[1644334633580,28.69322196,111.62,111.49,36.89907442]
[1644334633779,15.56045549,111.61,111.43,4.484]
[1644334633985,30.85358069,111.61,111.43,4.484]
[1644334634180,2.10775549,111.6,111.43,15.264]
[1644334634383,0.0301252,111.59,111.44,1.86819067]
[1644334634592,0.0301252,111.59,111.45,10.78]
[1644334634782,1.3086216,111.59,111.46,39.03030229]
[1644334634986,13.4564,111.58,111.46,39.03030229]
[1644334635182,0.0301252,111.58,111.46,51.92849296]
[1644334635386,0.0301252,111.59,111.46,51.92849296]
[1644334635686,0.0301252,111.61,111.46,50.06030229]
[1644334635885,10.8101252,111.61,111.46,49.81030229]
[1644334636083,13.4584,111.57,111.46,49.81030229]
[1644334636283,18.09233769,111.56,111.46,39.03030229]
[1644334636787,18.09233769,111.56,111.44,10.78]
[1644334636985,18.12246289,111.56,111.44,10.78]
[1644334637183,18.09233769,111.56,111.42,74.8389]
[1644334637384,0.0301252,111.55,111.43,10.78]
[1644334637584,18.09233769,111.56,111.43,52.54267059]
[1644334637782,0.0301252,111.55,111.43,52.79267059]
[1644334637984,31.55183769,111.56,111.43,52.79267059]
[1644334638190,0.0301252,111.55,111.43,52.79267059]
[1644334638386,31.55183769,111.56,111.43,52.79267059]
[1644334638587,31.55183769,111.56,111.43,52.54267059]
[1644334639987,37.55183769,111.56,111.43,52.54267059]
[1644334640191,37.55183769,111.56,111.43,52.79267059]
[1644334640591,37.55183769,111.56,111.43,52.54267059]
[1644334640991,42.03583769,111.56,111.4,33.2809]
[1644334641191,13.4654,111.51,111.38,1.86819067]
[1644334641393,0.0301252,111.5,111.37,74.0706]
[1644334641592,10.78,111.52,111.34,10.78]
[1644334641792,0.0301252,111.49,111.34,10.78]
[1644334641992,5.90950587,111.51,111.35,43.56031777]
[1644334642191,0.0301252,111.48,111.35,43.56031777]
[1644334642394,0.0301252,111.5,111.35,43.56031777]
[1644334642796,18.09233769,111.48,111.35,43.81031777]
[1644334643192,0.0301252,111.47,111.35,43.81031777]
[1644334643895,0.0301252,111.47,111.35,43.56031777]
[1644334644815,5.87938067,111.46,111.35,43.56031777]
[1644334645016,1.2156478,111.47,111.35,59.9638812]
[1644334645217,6.0,111.47,111.35,60.2138812]
[1644334645421,0.0301252,111.47,111.35,60.2138812]
[1644334645817,0.0301252,111.47,111.35,72.86195806]
[1644334646020,0.0301252,111.47,111.37,48.44773905]
[1644334646218,6.0,111.48,111.37,59.47773905]
[1644334646418,0.0301252,111.48,111.39,44.79031019]
[1644334646620,0.0301252,111.49,111.39,44.79031019]